Cogmind - Beta 13 @@@ ROGUE MODE // 2024.04.08 @ 19:20:56 Player: SnowyImp Result: Self-destructed Performance ------------- Evolutions (2) 1000 Regions Visited (5) 1000 Robots Destroyed (20) 100 Value Destroyed (669) 669 Prototype IDs (1) 20 Alien Tech Used (0) 0 Bonus (526) 526 TOTAL SCORE: 3315 Bonus ------- Follower Combat Kills 226 Aligned with FarCom 300 Cogmind --------- Core Integrity 175/550 Matter 253/300 Energy 160/160 System Corruption 0% Temperature Cool (0) Movement Walking (120) Location -8/Materials Parts ------- > --- POWER (1) -------- Light Nuclear Core > --- PROPULSION (4) --- Aluminum Leg Aluminum Leg Carbon-fiber Leg > --- UTILITY (4) ------ Advanced Visual Processing Unit Targeting Computer Improved Targeting Computer System Shield > --- WEAPON (2) ------- Gauss Cannon Gauss Cannon > --- INVENTORY (5) ---- Combat Airjet Transmission Jammer Hacking Suite Spear Spear Peak State ------------ > --- POWER ------------ Light Ion Engine > --- PROPULSION ------- Aluminum Leg Aluminum Leg Carbon-fiber Leg Carbon-fiber Leg > --- UTILITY ---------- Improved Heat Sink Improved Heat Sink Improved Targeting Computer System Shield > --- WEAPON ----------- Gauss Cannon Gauss Cannon > --- INVENTORY -------- Combat Airjet Gauss Cannon Gauss Cannon Deploy-a-Sentry Deploy-a-Sentry [Rating: 30] Favorites ----------- Power Ion Engine Engine Ion Engine Power Core Light Nuclear Core Propulsion Aluminum Leg Leg Aluminum Leg Wheel Compact Wheel Hover Unit Combat Airjet Utility Improved Heat Sink Device Improved Heat Sink Processor Improved Targeting Computer Hackware System Shield Weapon Small Laser Energy Gun Small Laser Energy Cannon Beam Cannon Ballistic Gun Light Assault Rifle Ballistic Cannon Gauss Cannon Impact Weapon Hammer Build | -11 -10 -10 -10 -9 -8 ------- Run | Yrd Mat Min Exi Min Mat Slots Evolved 4 | . . . . . 4 Power . | . . . . . . Propulsion 2 | . . . . . 2 Utility 2 | . . . . . 2 Weapon . | . . . . . . Parts Attached 39 | 5 4 5 1 3 21 Power 6 | 1 . . . 2 3 Engine 5 | 1 . . . 2 2 Core 1 | . . . . . 1 Reactor . | . . . . . . Propulsion 10 | 2 . 1 1 . 6 Treads . | . . . . . . Leg 8 | 2 . . . . 6 Wheel 1 | . . . 1 . . Hover 1 | . . 1 . . . Flight . | . . . . . . Utility 8 | . . 1 . 1 6 Device 3 | . . 1 . . 2 Storage . | . . . . . . Processor 4 | . . . . 1 3 Hackware 1 | . . . . . 1 Protection . | . . . . . . Artifact . | . . . . . . Weapon 15 | 2 4 3 . . 6 Energy Gun 5 | . 2 2 . . 1 Energy Cannon 2 | . 2 . . . . Ballistic Gun 3 | 2 . . . . 1 Ballistic Cannon 4 | . . . . . 4 Launcher . | . . . . . . Special Weapon . | . . . . . . Impact Weapon 1 | . . 1 . . . Slashing Weapon . | . . . . . . Piercing Weapon . | . . . . . . Special Melee Weapon . | . . . . . . Unidentified Prototypes 1 | . . 1 . . . Parts Lost 10 | . 1 . . . 9 Power 2 | . . . . . 2 Propulsion 5 | . 1 . . . 4 Utility . | . . . . . . Weapon 3 | . . . . . 3 Highest Loss Streak 5 | . 1 . . . 5 To Critical Strikes . | . . . . . . Average Slot Usage (%) 65 | . 65 51 57 61 76 Engine 9 | . 14 14 14 14 3 Core 2 | . . . . . 4 Leg 18 | . 22 14 8 . 25 Wheel 1 | . . . 5 14 . Device 4 | . . . . . 10 Processor 4 | . . . . 4 9 Hackware 2 | . . . . . 6 Energy Gun 11 | . 7 17 28 28 3 Energy Cannon 1 | . 9 . . . . Ballistic Gun 1 | . 10 . . . . Ballistic Cannon 5 | . . . . . 13 Impact Weapon 1 | . . 5 . . . Naked Turns . | . . . . . . Heaviest Build 21 | 7 11 7 7 9 21 Greatest Support 35 | 20 20 10 16 16 35 Greatest Overweight (x) 3 | . 1 . . . 3 Average Overweight (x) . | . . . . . . Largest Inventory Capacity 5 | 5 5 5 5 5 5 Average Capacity 5 | 5 5 5 5 5 5 Most Carried 5 | 2 4 5 5 5 5 Average Carried 4 | . 2 4 4 4 4 Final Capacity 5 | 5 5 5 5 5 5 Final Carried 5 | 2 4 4 5 5 5 Class Distribution -------------------- 65% | Mutant 34% | Scavenger-Mutant Dominant Class ---------------- Mutant | -10/Materials Mutant | -10/Mines Mutant | -10/Exiles Mutant | -9/Mines Scavenger-Mutant | -8/Materials Resources | -11 -10 -10 -10 -9 -8 ----------- Run | Yrd Mat Min Exi Min Mat Matter Collected 781 | 239 49 50 . 40 403 Remotely . | . . . . . . Salvage Created 773 | . 114 33 . 69 557 Parts 28 | . 3 . . 5 20 Haulers Intercepted . | . . . . . . Recyclers Shooed 2 | . 1 . . . 1 Parts Field Recycled . | . . . . . . Retrieved Matter . | . . . . . . Parts Self-Destructed . | . . . . . . Prevented . | . . . . . . Kills | -11 -10 -10 -10 -9 -8 ------- Run | Yrd Mat Min Exi Min Mat Combat Hostiles Destroyed 17 | . 3 . . 4 10 Guns 10 | . . . . 4 6 Cannons 7 | . 3 . . . 4 Classes Destroyed 5 | . 1 . . 1 3 Recycler 3 | . . . . . 3 Swarmer 4 | . . . . 4 . Grunt 11 | . 3 . . . 8 Sentry 1 | . . . . . 1 Hunter 1 | . . . . . 1 Best Kill Streak 4 | . 2 . . 4 3 Combat Bots Only 4 | . 2 . . 4 3 Max Kills in Single Turn 2 | . 1 . . 2 1 Gunslinging 1 | . . . . 1 . Exploded . | . . . . . . Melee . | . . . . . . Uniques/NPCs Destroyed . | . . . . . . Combat | -11 -10 -10 -10 -9 -8 -------- Run | Yrd Mat Min Exi Min Mat Hostile Shots Fired 184 | . 50 . . 14 120 Missed 54 | . 15 . . 3 36 Damage Taken 1762 | . 418 . . 93 1251 Core 450 | . 66 . . 9 375 Absorbed by Shields . | . . . . . . Core Remaining (%) 85 | 100 . . . 70 . Volleys Fired 90 | . 18 8 . 4 60 Largest 2 | . 2 2 . 2 2 Hottest 120 | . 120 80 . 80 96 Shots Fired 148 | . 33 16 . 8 91 Gun 73 | . . 16 . 8 49 Cannon 75 | . 33 . . . 42 Launcher . | . . . . . . Special . | . . . . . . Kinetic 53 | . . . . . 53 Thermal 95 | . 33 16 . 8 38 Explosive . | . . . . . . Electromagnetic . | . . . . . . Robot Hit Streak 16 | . 8 6 . 5 16 Robot Miss Streak 3 | . 2 1 . 2 3 Penetration Max . | . . . . . . Secondary Targets 1 | . . . . 1 . Max Gunslinging Chain 1 | . . . . 1 . Shots Hit Robots 100 | . 23 12 . 4 61 Core Hits 37 | . 5 3 . 4 25 Critical Kills . | . . . . . . Critical Parts Destroyed . | . . . . . . Critical Strikes 5 | . . . . . 5 Burn 2 | . . . . . 2 Blast 3 | . . . . . 3 Melee Attacks 16 | . . 16 . . . Impact 16 | . . 16 . . . Slashing . | . . . . . . Piercing . | . . . . . . Sneak Attacks . | . . . . . . Combat Hostiles . | . . . . . . Follow-up Attacks . | . . . . . . Damage Inflicted 1723 | . 428 140 . 45 1110 Guns 730 | . . 138 . 45 547 Cannons 984 | . 423 . . . 561 Explosions . | . . . . . . Melee . | . . . . . . Ramming 9 | . 5 2 . . 2 Kinetic 695 | . . . . . 695 Thermal 1019 | . 423 138 . 45 413 Explosive . | . . . . . . Electromagnetic . | . . . . . . Impact . | . . . . . . Slashing . | . . . . . . Piercing . | . . . . . . Highest Corruption . | . . . . . . Average Corruption . | . . . . . . Corruption Purged . | . . . . . . Corruption Blocked . | . . . . . . Overload Shots . | . . . . . . Overflow Damage 6 | . 6 . . . . Projectiles 6 | . 6 . . . . Explosions . | . . . . . . Melee . | . . . . . . Knockbacks 5 | . . . . . 5 Impact . | . . . . . . Kinetic 5 | . . . . . 5 Secondary . | . . . . . . Self-Inflicted Damage . | . . . . . . Shots . | . . . . . . Rammed . | . . . . . . Targets Rammed 4 | . 1 2 . . 1 Kicked 4 | . 1 2 . . 1 Crushed . | . . . . . . Highest Temperature 428 | . 428 72 . 54 195 Average Temperature 144 | . 227 38 . 25 74 Received Heat Transfer 729 | . 234 . . . 495 Effects 5 | . 5 . . . . Interference 4 | . 4 . . . . Damage (minor) 1 | . 1 . . . . Siege Activations . | . . . . . . Robots Corrupted . | . . . . . . Combat Hostiles . | . . . . . . Parts Fried . | . . . . . . Impact Corruptions . | . . . . . . Robots Melted . | . . . . . . Combat Hostiles . | . . . . . . Parts Melted 4 | . 1 . . . 3 Heat Transferred 2426 | . 888 300 . 100 1138 Parts Sabotaged . | . . . . . . Parts Stolen . | . . . . . . Parts Stripped . | . . . . . . Power Chain Reactions . | . . . . . . Alert | -11 -10 -10 -10 -9 -8 ------- Run | Yrd Mat Min Exi Min Mat Peak Influence 383 | . 75 38 . 135 383 Initial 52 | . . 28 . . 52 Average 130 | . 35 24 . 105 232 Maximum Alert Level 1 | . . . . . 1 Low Security (%) 68 | 100 100 100 . 100 35 Level 1 31 | . . . . . 64 Level 2 . | . . . . . . Level 3 . | . . . . . . Level 4 . | . . . . . . Level 5 . | . . . . . . High Security . | . . . . . . Max Security . | . . . . . . Squads Dispatched 7 | . 1 . . . 6 Investigation 4 | . . . . . 4 Extermination . | . . . . . . Reinforcement 3 | . 1 . . . 2 Assault . | . . . . . . Garrison . | . . . . . . Intercept . | . . . . . . Searches Triggered . | . . . . . . Construction Impeded 1 | . . . . . 1 Haulers Reinforced . | . . . . . . Active Scanning Responses . | . . . . . . Cargo Convoy Interrupts . | . . . . . . Stealth | -11 -10 -10 -10 -9 -8 --------- Run | Yrd Mat Min Exi Min Mat Distress Signals 2 | . . . . . 2 Communications Jammed . | . . . . . . Distress Signals . | . . . . . . Times Spotted 38 | . 6 . . 6 26 Peak Tracking Total 6 | . 2 . . 4 6 Tactical Retreats 4 | . . . . 1 3 Traps | -11 -10 -10 -10 -9 -8 ------- Run | Yrd Mat Min Exi Min Mat Traps Triggered 2 | . . . . . 2 Indirectly . | . . . . . . Trap Hack Attempts . | . . . . . . Triggered . | . . . . . . Disarmed . | . . . . . . Reprogrammed . | . . . . . . Reused . | . . . . . . Traps Extracted . | . . . . . . Installed . | . . . . . . Triggered . | . . . . . . Machines | -11 -10 -10 -10 -9 -8 ---------- Run | Yrd Mat Min Exi Min Mat Machines Disabled 2 | . . . . . 2 Max in Single Turn 1 | . . . . . 1 Machines Repaired . | . . . . . . Machines Dismantled . | . . . . . . Machines Sabotaged . | . . . . . . Overloaded Fab Kills . | . . . . . . Hacking | -11 -10 -10 -10 -9 -8 --------- Run | Yrd Mat Min Exi Min Mat Machines Accessed 7 | . 1 1 . . 5 Terminals 6 | . 1 . . . 5 Fabricators . | . . . . . . Repair Stations . | . . . . . . Recycling Units . | . . . . . . Scanalyzers . | . . . . . . Garrison Access . | . . . . . . Total Hacks 17 | . 3 1 . . 13 Successful 6 | . 1 1 . . 4 Failed 11 | . 2 . . . 9 Catastrophic 2 | . 1 . . . 1 Database Lockouts . | . . . . . . Manual 17 | . 3 . 1 . 13 Terminals 16 | . 3 . . . 13 Fabricators . | . . . . . . Repair Stations . | . . . . . . Recycling Units . | . . . . . . Scanalyzers . | . . . . . . Garrison Access . | . . . . . . Terminal Hacks 3 | . . 1 . . 2 Part Schematic 2 | . . . . . 2 Open Door 1 | . . 1 . . . Fabricator Hacks . | . . . . . . Repair Station Hacks . | . . . . . . Recycling Unit Hacks . | . . . . . . Scanalyzer . | . . . . . . Garrison Access Hacks . | . . . . . . Unauthorized Hacks 3 | . 1 . . . 2 Terminals 3 | . 1 . . . 2 Botnet 3 | . 1 . . . 2 Fabricators . | . . . . . . Repair Stations . | . . . . . . Recycling Units . | . . . . . . Scanalyzers . | . . . . . . Garrison Access . | . . . . . . Data Cores Recovered . | . . . . . . Used . | . . . . . . Hacking Detections 6 | . 1 . . . 5 Full Trace Events 2 | . . . . . 2 Feedback Events . | . . . . . . Feedback Blocked . | . . . . . . Robot Schematics Acquired . | . . . . . . Robots Built . | . . . . . . Authchips . | . . . . . . Time . | . . . . . . Total Robot Build Rating . | . . . . . . Part Schematics Acquired 2 | . . . . . 2 Parts Built . | . . . . . . Authchips . | . . . . . . Time . | . . . . . . Total Part Build Rating . | . . . . . . Parts Repaired . | . . . . . . Time . | . . . . . . Parts Recycled . | . . . . . . Recycled Matter . | . . . . . . Retrieved Matter . | . . . . . . Retrieved Components . | . . . . . . Parts Scanalyzed . | . . . . . . Part Schematics Acquired . | . . . . . . Parts Damaged . | . . . . . . Bothacking | -11 -10 -10 -10 -9 -8 ------------ Run | Yrd Mat Min Exi Min Mat Used RIF Installer . | . . . . . . Robots Hacked . | . . . . . . Non-combat . | . . . . . . Combat . | . . . . . . Robot Hacks Applied . | . . . . . . Relay Couplers Released . | . . . . . . Fabnet Peak Effective % . | . . . . . . Robots Rewired . | . . . . . . Allies Hacked . | . . . . . . Hacks Repelled . | . . . . . . Allies | -11 -10 -10 -10 -9 -8 -------- Run | Yrd Mat Min Exi Min Mat Total Allies . | . . . . . . Largest Group . | . . . . . . Highest-Rated Group . | . . . . . . Highest-Rated Ally . | . . . . . . Total Orders . | . . . . . . Ally Attacks 27 | . . . . . 27 Total Damage 1242 | . . . . . 1242 Kills 7 | . . . . . 7 Allies Corrupted . | . . . . . . Allies Melted 1 | . . . . . 1 Turrets Deployed 3 | . . . . . 3 Intel | -11 -10 -10 -10 -9 -8 ------- Run | Yrd Mat Min Exi Min Mat Robot Analysis Total . | . . . . . . Derelict Logs Recovered 2 | . . 1 . 1 . Drone Launches . | . . . . . . Drone Recoveries . | . . . . . . Exploration | -11 -10 -10 -10 -9 -8 ------------- Run | Yrd Mat Min Exi Min Mat Turns Passed 2262 | 56 314 572 240 100 980 Spaces Moved 1422 | 42 169 410 211 76 514 Core 7 | 4 . . . . 3 Treads . | . . . . . . Legs 1229 | 38 169 410 115 . 497 Wheels 186 | . . . 96 76 14 Hover . | . . . . . . Flight . | . . . . . . Fastest Speed 50 | 50 120 120 100 100 100 Average Speed 120 | 113 124 120 110 100 127 Slowest Speed 200 | 120 190 120 120 100 200 Overloaded Moves . | . . . . . . Propulsion Burnouts . | . . . . . . Robots Hopped . | . . . . . . Cave-ins Triggered . | . . . . . . Exploration Rate (%) 40 | 3 34 91 61 22 34 Regions Visited 5 Branch Regions 3 Pre-discovered Areas 1 | . . 1 . . . Known Exits Taken . | . . . . . . Unknown Exits Taken 5 | 1 1 1 1 1 . Scrap Searched . | . . . . . . Spaces Dug 10 | . . 10 . . . Terrain Destroyed 38 | . . 10 . . 28 Melee 10 | . . 10 . . . Projectile 28 | . . . . . 28 AOE . | . . . . . . Terrain Rammed . | . . . . . . Walls Destroyed . | . . . . . . Machines Disabled . | . . . . . . Actions | -11 -10 -10 -10 -9 -8 --------- Run | Yrd Mat Min Exi Min Mat Total 1789 | 48 240 446 217 93 745 Wait 179 | . 43 . . 7 129 Move 1417 | 41 168 409 210 75 514 Hop . | . . . . . . Pick Up 16 | 2 2 . 3 1 8 Fast Attach 30 | 5 4 2 1 1 17 Attach 3 | . . 2 . . 1 Detach 2 | . . 2 . . . Swap 6 | . . 1 . 2 3 Drop 24 | . 4 2 3 3 12 Fire 90 | . 18 8 . 4 60 Melee 16 | . . 16 . . . Ram . | . . . . . . Kick 4 | . 1 2 . . 1 Crush . | . . . . . . Escape Stasis . | . . . . . . Rewire 2 | . . 2 . . . Trap . | . . . . . . Miscellaneous . | . . . . . . Route ------- -11/Scrapyard -10/Materials -10/Mines (discovered 3 exits: [*Mat x2] / *Exi) -10/Exiles -9/Mines -8/Materials History --------- Turn | Location | Event 9 | -11/Scrapyard | Discovered new exit (range 16) 57 | -11/Scrapyard | Entered Materials 309 | -10/Materials | Build established: Mutant 354 | -10/Materials | Discovered new exit (range 15) 371 | -10/Materials | Entered Mines 373 | -10/Mines | Met a Derelict bent on vengeance 382 | -10/Mines | Assembled infested the area 536 | -10/Mines | Found the Drone Emporium 541 | -10/Mines | Found Prototype Device 541 | -10/Mines | Identified Decoy Drone Bay 563 | -10/Mines | Learned location of Storage (-8) 565 | -10/Mines | Discovered new exit (range 14) 724 | -10/Mines | Discovered new exit (range 3) 790 | -10/Mines | Learned Materials security intel 938 | -10/Mines | Discovered new exit (range 5) 943 | -10/Mines | Entered Exiles 971 | -10/Exiles | Met 8R-AWN 994 | -10/Exiles | Met EX-HEX 1026 | -10/Exiles | Met EX-BIN 1043 | -10/Exiles | Aligned with FarCom system 1044 | -10/Exiles | Given EX-Vault access code 1072 | -10/Exiles | Opened EX-Vault 1079 | -10/Exiles | Found Deploy-a-Sentry 1081 | -10/Exiles | Found Deploy-a-Sentry 1083 | -10/Exiles | Found Deploy-a-Sentry 1108 | -10/Exiles | Warned to stay clear of 0b10 Research branches 1136 | -10/Exiles | Met EX-DEC 1173 | -10/Exiles | Discovered new exit (range 11) 1183 | -10/Exiles | Left Exiles lab with Deploy-a-Sentry 1183 | -10/Exiles | Entered Mines 1225 | -9/Mines | Learned Materials stockpile data 1232 | -9/Mines | Discovered new exit (range 14) 1245 | -9/Mines | Joined a pair of Derelicts in attacking an 0b10 outpost 1283 | -9/Mines | Entered Materials 1283 | -8/Materials | Evolved 4 slots: Propulsion x2, Utility x2 1364 | -8/Materials | DAS Turret deployed 1410 | -8/Materials | Lost 3 parts (1p1n1w) 1443 | -8/Materials | Core integrity fell below 50% 1488 | -8/Materials | Lost 5 parts (1p2n2w) 1774 | -8/Materials | Build established: Scavenger-Mutant 1855 | -8/Materials | DAS Turret deployed 2044 | -8/Materials | DAS Turret deployed 2263 | -8/Materials | Self-destructed Last Messages --------------- 02044_ DAS Turret deployed. 02052_ R-06 Scavenger collects Spear. 02072_ Acquired Spear. 02193_ G-47 Trooper knocked back. 02194_ DAS Turret suffers critical hit (Burn). 02196_ G-47 Trooper knocked back. 02198_ Destroyed Lgt. Nuclear Core. 02198_ G-47 Trooper destroyed. 02202_ DAS Turret heat spikes uncontrollably. 02202_ Destroyed Lgt. Nuclear Core. 02202_ G-47 Trooper Particle Gun blasted off. 02202_ G-47 Trooper knocked back. 02203_ DAS Turret heat damages core (-36). 02211_ DAS Turret suffers critical hit (Burn). 02213_ G-47 Trooper knocked back. 02216_ G-47 Trooper destroyed. 02223_ Acquired 9 matter. 02239_ Acquired Adv. Visual Processing Unit. 02252_ Dropped Imp. Heat Sink. 02252_ Acquired Targeting Computer. Map ----- +----------------------------------------------------+ | ?????????????????????????????????????? | | ?????????????????????????????????????? | | ?????????????????????????????????????? | | ?????????????????????????????????????? | | ???????????????????? ????????????????? | | ???????????????????? ????????????????? | | ???????????????????? ????????? ????? | | ???????????????????? ????????" ????? | | ???????????????????? ???????"" ????? | | ???????????????????? ??????? ????? | | ???????????????????? ??????? #???? | | ???????????????????# #??????# #???? | | ???????????????????# #??????# #???? | | ???????????????????# #??????# #???? | | ???????????????????# #??????# #???? | | ???????????????????# #??????# #???? | | ???????????????????# #??????# #???? | | ???????????????????#o#??????# #???? | | #######?????######## ######## #???? | | #?????# + #???? | | #?????# # #???? | | #?????# # "" #???? | | """ #?????# + T" #???? | | """ #?????# ###; % % "" #???? | | " """ #?????# #?#; #???? | | " #?????#####+##?## @ #???? | | #?????????# #???# #???? | | ##+######???????# #???# ! #???? | | #???????# #???# #???? | | #???????# #???# #???? | | % %#???????# #???#! "" %#???? | | ##### #?????### ###?# """ = #???? | | #!! #######! #?#% """ % % #???? | | #!! t %% % %T ###= %#???? | | #! %"" t%[[ #???? | | #!! ####### #???? | | # ## ## ##????# #???? | | #/ ## ####+####????#! !#???? | | ###### + #????##!!!!##???? | | ?????######### """"" #?????######????? | | ?????????????# """"" #???????????????? | | ?????????????# """"" #???????????????? | | ?????????????# #???????????????? | | ?????????????#########???????????????? | | ?????????????????????????????????????? | | ?????????????????????????????????????? | | #????????????????????????????????????? | | ######################???????????????? | | #???????????????? | | #???????????????? | +----------------------------------------------------+ Best States ------------- Heat Dissipation 59 Energy Generation 14 Energy Capacity 265 Matter Stores 300 Matter Capacity 300 Sight Range 20 Terrain Scan Density 10 Evasion (%) 55 Targeting Accuracy 11 Defensive Hacking 10 Item Schematics ----------------- Katana | -8/Materials | Hacked Hacking Suite | -8/Materials | Hacked Robot Schematics ------------------ None Fabricated ------------ Nothing Alien Tech Used ----------------- None Achievements -------------- None Challenges ------------ None Game ------ Seed GunUtilityFemtoactuators Manual? 0 Play Time 00:24:30 Cumulative 28.2 hours Start 2024.04.08 @ 16:45:05 End 2024.04.08 @ 19:20:56 Sessions 2 Manual Loads 0 Difficulty Rogue Special Mode None Game No. 39 Rogue 39 Adventurer 0 Explorer 0 Win Type - Total 0 Types 0/0/0/0/0/0/0/0/0 Lore% 13 Gallery% 30 Achievement% 24 Wizard Run 0 Options --------- Layout 1 ASCII 0 Keyboard 0 Movement Numpad Keybinds 0 Fullscreen 1 Font 24/Crisp Map View 50x35 Zoom Use 0% Tactical HUD 1 Map Filters NONE Filters NONE Steam 1 RUN: 91b53006-4a14-4182-b194-0d03538b13c4